No of Transactions,Dept_Family,Entity_Name,Cert Date,Supplier Name,Reference,Gross Amt,Group/Department,Type of Expenditure - Subjective Codes
1,DCMS,Historic England,26/01/2022,ASE II Temple Mill Limited,0082006022,"254,400.00",Regions Group-North East & Yorkshire - RD,Grants Historic Buildings
2,DCMS,Historic England,20/01/2022,CDW UK,0040139287,"28,265.19",Corporate Services-IMT,Equipment & Furniture <10k
3,DCMS,Historic England,25/01/2022,City of York Council,0081005938,"30,000.00",Business Improvement-Grants,Grants Historic Environment
4,DCMS,Historic England,14/01/2022,Croft Building and Conservation Ltd,0040139362,"496,365.60",Shrewsbury Flax Mill Maltings-Shrewsbury Flax Mill Maltings,Works (Non Office)
5,DCMS,Historic England,14/01/2022,Croft Building and Conservation Ltd,0040139363,"48,000.00",Shrewsbury Flax Mill Maltings-Shrewsbury Flax Mill Maltings,Works (Non Office)
6,DCMS,Historic England,14/01/2022,Croft Building and Conservation Ltd,0040139363,"8,949.60",Shrewsbury Flax Mill Maltings-Shrewsbury Flax Mill Maltings,Works (Non Office)
7,DCMS,Historic England,21/01/2022,Derbyshire Historic Buildings Trust,0082006018,"102,692.00",Regions Group-Midlands - RD,Grants Historic Buildings
8,DCMS,Historic England,28/01/2022,Derbyshire Historic Buildings Trust,0082006025,"33,813.00",Regions Group-Midlands - RD,Grants Historic Buildings
9,DCMS,Historic England,27/01/2022,EDF  ,0020074776,"34,511.89",Corporate Services-Corporate,Electricity
10,DCMS,Historic England,10/01/2022,F A Valiant & Son Limited,0040139188,"10,231.52",Corporate Services-Office Estate,Repairs
11,DCMS,Historic England,10/01/2022,F A Valiant & Son Limited,0040139188,"34,063.40",Corporate Services-Office Estate,Repairs
12,DCMS,Historic England,12/01/2022,Forterra  Building Products Ltd,0081005927,"31,037.50",Business Improvement-Grants,Grants Historic Environment
13,DCMS,Historic England,19/01/2022,Freidman FM Ltd,0040138865,"10,027.64",Corporate Services-Facilities Management,Office Cleaning
14,DCMS,Historic England,19/01/2022,Freidman FM Ltd,0040138865,"9,226.67",Corporate Services-Facilities Management,Security
15,DCMS,Historic England,19/01/2022,Freidman FM Ltd,0040138865,"15,878.02",Corporate Services-Facilities Management,Maintenance
16,DCMS,Historic England,19/01/2022,Freidman FM Ltd,0040138865,"17,273.47",Corporate Services-Facilities Management,Maintenance
17,DCMS,Historic England,19/01/2022,Freidman FM Ltd,0040138865,"1,528.61",Corporate Services-Facilities Management,Maintenance
18,DCMS,Historic England,10/01/2022,GTT-EMA Ltd,0040139239,"4,704.42",Corporate Services-IMT,Network Contracts
19,DCMS,Historic England,10/01/2022,GTT-EMA Ltd,0040139239,"40,512.30",Corporate Services-IMT,Network Contracts
20,DCMS,Historic England,20/01/2022,GTT-EMA Ltd,0040139265,"45,216.72",Corporate Services-IMT,Network Contracts
21,DCMS,Historic England,20/01/2022,GTT-EMA Ltd,0040139265,678.19,Corporate Services-IMT,Network Contracts
22,DCMS,Historic England,24/01/2022,Historic Royal Palaces,0083001515,"2,166,393.00",Business Improvement-Grants,Grants Historic Buildings
23,DCMS,Historic England,12/01/2022,Little Fish (UK) Ltd,0040139281,"42,174.23",Corporate Services-IMT,Service Management Contracts
24,DCMS,Historic England,12/01/2022,Little Fish (UK) Ltd,0040139282,"72,060.80",Corporate Services-IMT,End User Contracts
25,DCMS,Historic England,18/01/2022,Mather & Co Ltd,0040139350,"129,842.57",Shrewsbury Flax Mill Maltings-Shrewsbury Flax Mill Maltings,Bought in Advice
26,DCMS,Historic England,28/01/2022,Method4 Ltd,0040139533,"39,127.20",Public Engagement-Content & Marketing,System Developments <50k
27,DCMS,Historic England,05/01/2022,Mid Devon District Council,0083001507,"32,400.00",Public Engagement-High Str (HAZ) - Public Engag,Grants Other Grants
28,DCMS,Historic England,21/01/2022,Morris Hargreaves McIntyre,0040139432,"43,762.76",Policy & Evidence-Analytics,Bought in Advice
29,DCMS,Historic England,21/01/2022,Morris Hargreaves McIntyre,0040139432,"22,237.24",Policy & Evidence-Analytics,Bought in Advice
30,DCMS,Historic England,21/01/2022,Sheerness Dockyard Preservation Trust,0082006019,"84,000.00",Regions Group-London & South East - RD,Grants Historic Buildings
31,DCMS,Historic England,28/01/2022,Ripley Castle Harrogate North Yorkshire,0082006024,"80,000.00",Regions Group-North East & Yorkshire - RD,Grants Historic Buildings
32,DCMS,Historic England,10/01/2022,SoftwareOne UK Ltd,0040139118,"70,015.55",Corporate Services-IMT,Hosting
33,DCMS,Historic England,25/01/2022,SoftwareOne UK Ltd,0040139501,"77,765.45",Corporate Services-IMT,Hosting
34,DCMS,Historic England,05/01/2022,Somerset West and Taunton Council,0082006013,"31,545.00",Regions Group-South West - RD,Grants Historic Buildings
35,DCMS,Historic England,05/01/2022,Stanley Arts,0083001506,"29,925.00",Public Engagement-High Str (HAZ) - Public Engag,Grants Other Grants
36,DCMS,Historic England,10/01/2022,TeamViewer Germany GmbH,0040139196,"26,850.00",Corporate Services-IMT,Software Maintenance
37,DCMS,Historic England,14/01/2022,The National Trust,0083001511,"2,384,577.00",Business Improvement-Grants,Grants Historic Buildings
38,DCMS,Historic England,11/01/2022,XMA Limited,0040139284,"118,377.60",Corporate Services-IMT,End User Contracts
